bitfinex/quotes_BTCUSD_20250316
["timestamp","ask_amount","ask_price","bid_price","bid_amount"]
[1742156287611,0.0243378,83521.0,83520.0,0.00538251]
[1742156288054,0.0243378,83521.0,83520.0,0.01735551]
[1742156288951,0.01876604,83521.0,83520.0,0.01735551]
[1742156289158,0.01876604,83521.0,83520.0,0.00538251]
[1742156289562,0.02432509,83521.0,83520.0,0.00538251]
[1742156289785,0.03629809,83521.0,83520.0,0.00538251]
[1742156290216,0.22786609,83521.0,83520.0,0.00538251]
[1742156290426,0.22936274,83521.0,83520.0,0.00538251]
[1742156290626,0.2105967,83521.0,83520.0,0.00438251]
[1742156290817,0.22244728,83521.0,83520.0,0.00438251]
[1742156291027,0.22244728,83521.0,83520.0,0.00138251]
[1742156291205,0.22244728,83521.0,83520.0,0.00438251]
[1742156291611,0.22244728,83521.0,83520.0,0.00138251]
[1742156292042,0.30004728,83521.0,83520.0,0.00138251]
[1742156292257,0.29855063,83521.0,83520.0,0.00138251]
[1742156292469,0.31309148,83521.0,83520.0,0.00038251]
[1742156292691,0.31309148,83521.0,83520.0,5.1e-07]
[1742156293109,0.31409148,83521.0,83520.0,5.1e-07]
[1742156293325,0.72969037,83521.0,83520.0,0.00033911]
[1742156293545,0.72869037,83521.0,83520.0,0.00033911]
[1742156293962,0.7504586,83521.0,83520.0,0.00033911]
[1742156294163,0.7524586,83521.0,83520.0,0.00033911]
[1742156294910,0.7504586,83521.0,83520.0,0.00033911]
[1742156295118,0.7534586,83521.0,83520.0,0.00033911]
[1742156303575,0.7534586,83521.0,83520.0,1.1e-07]
[1742156303576,1.17803363,83521.0,83520.0,1.1e-07]
[1742156303837,1.27603343,83521.0,83520.0,1.1e-07]
[1742156303976,1.2572652,83521.0,83520.0,1.1e-07]
[1742156304565,1.2542652,83521.0,83520.0,1.1e-07]
[1742156304789,1.2592652,83521.0,83520.0,1.1e-07]
[1742156305255,1.13969017,83521.0,83520.0,1.1e-07]
[1742156305466,1.13985947,83521.0,83520.0,1.1e-07]
[1742156305671,1.13985947,83521.0,83494.0,0.000338]
[1742156305672,0.279177,83506.0,83504.0,9.1e-07]
[1742156305876,0.63305209,83505.0,83504.0,2.4e-07]
[1742156306051,0.63708722,83505.0,83504.0,2.4e-07]
[1742156306405,0.702035,83505.0,83504.0,2.4e-07]
[1742156306608,0.64208722,83505.0,83504.0,2.4e-07]
[1742156306814,0.94208722,83505.0,83504.0,2.4e-07]
[1742156307012,0.99208702,83505.0,83504.0,2.4e-07]
[1742156307212,1.01085998,83505.0,83504.0,2.4e-07]
[1742156308256,1.03753469,83505.0,83504.0,2.4e-07]
[1742156308461,0.284204,83495.0,83494.0,2.4e-07]
[1742156308724,0.69980289,83495.0,83494.0,8.5e-07]
[1742156309000,0.70530961,83495.0,83494.0,8.5e-07]
[1742156309874,0.70930961,83495.0,83494.0,8.5e-07]
[1742156310070,0.71230961,83495.0,83494.0,8.5e-07]
[1742156310411,0.78769046,83495.0,83494.0,8.5e-07]
[1742156311908,0.8064657,83495.0,83494.0,8.5e-07]
[1742156315019,0.87059046,83495.0,83494.0,8.5e-07]
[1742156317994,0.88236599,83495.0,83494.0,8.5e-07]
[1742156318189,0.88536599,83495.0,83494.0,8.5e-07]
[1742156318399,0.88536599,83495.0,83468.0,0.0003384]
[1742156318400,0.203661,83472.0,83468.0,0.0003384]
[1742156318623,0.77524074,83472.0,83468.0,0.0003384]
[1742156318881,0.78072325,83472.0,83468.0,0.0003384]
[1742156320045,0.6247424,83472.0,83468.0,0.0003384]
[1742156320657,0.6267424,83472.0,83468.0,0.0003384]
[1742156320881,0.6247424,83472.0,83468.0,0.0003384]
[1742156321365,0.6257424,83472.0,83468.0,0.0003384]
[1742156322157,0.6277424,83472.0,83468.0,0.0003384]
[1742156322361,0.6465223,83472.0,83468.0,0.0003384]
[1742156322675,0.65880444,83472.0,83468.0,0.0003384]
[1742156323915,0.203667,83469.0,83468.0,0.0003384]
[1742156324127,0.21064008,83469.0,83468.0,0.0003384]
[1742156324954,0.22518093,83469.0,83468.0,4e-07]
[1742156325158,0.22618093,83469.0,83468.0,0.00041177]
[1742156325353,0.22718093,83469.0,83468.0,7.7e-07]
[1742156325559,0.22618093,83469.0,83468.0,7.7e-07]
[1742156327453,0.64177982,83469.0,83468.0,7.7e-07]
[1742156327662,0.64128196,83469.0,83468.0,7.7e-07]
[1742156328060,0.64528196,83469.0,83468.0,7.7e-07]
[1742156328287,0.94428196,83469.0,83468.0,7.7e-07]
[1742156328444,0.01454085,83458.0,83457.0,7.7e-07]
[1742156328650,0.36121403,83458.0,83457.0,7.7e-07]
[1742156328948,0.36517797,83458.0,83457.0,7.7e-07]
[1742156329374,0.49267797,83458.0,83457.0,7.7e-07]
[1742156330028,0.91327686,83458.0,83457.0,7.7e-07]
[1742156330638,0.93205987,83458.0,83457.0,7.7e-07]
[1742156330835,0.78857987,83458.0,83457.0,7.7e-07]
[1742156331038,0.80555987,83458.0,83457.0,7.7e-07]
[1742156331398,0.80255987,83458.0,83457.0,7.7e-07]
[1742156331641,0.78377686,83458.0,83457.0,7.7e-07]
[1742156331962,0.81133302,83458.0,83457.0,7.7e-07]
[1742156332366,0.66585302,83458.0,83457.0,7.7e-07]
[1742156332605,0.81033302,83458.0,83457.0,7.7e-07]
[1742156332955,0.66885302,83458.0,83457.0,7.7e-07]
[1742156333136,0.63075601,83458.0,83457.0,7.7e-07]
[1742156333354,0.77223601,83458.0,83457.0,7.7e-07]
[1742156333531,0.76923601,83458.0,83457.0,7.7e-07]
[1742156333906,0.62975601,83458.0,83457.0,7.7e-07]
[1742156334180,0.62475601,83458.0,83457.0,7.7e-07]
[1742156334561,0.62575601,83458.0,83457.0,7.7e-07]
[1742156335867,0.64453733,83458.0,83457.0,7.7e-07]
[1742156338783,0.62575601,83458.0,83457.0,7.7e-07]
[1742156341828,0.42206101,83458.0,83457.0,7.7e-07]
[1742156342036,0.42206101,83458.0,83457.0,0.08030077]
[1742156342239,0.4528233,83458.0,83457.0,7.7e-07]
[1742156343479,0.4518233,83458.0,83457.0,7.7e-07]
[1742156344087,0.4398413,83458.0,83457.0,7.7e-07]
[1742156344667,0.4398413,83458.0,83457.0,0.01198277]
[1742156344788,0.4398413,83458.0,83457.0,0.28419777]
[1742156346010,0.02424241,83458.0,83457.0,0.28419777]
[1742156347002,0.00546212,83458.0,83457.0,0.08050077]
[1742156347566,0.00544366,83458.0,83457.0,0.08050077]
[1742156347768,0.00544366,83458.0,83457.0,0.09248277]
[1742156347961,0.011981,83462.0,83457.0,0.09248277]
[1742156348094,0.00544366,83458.0,83457.0,0.09248277]
[1742156348299,0.011981,83462.0,83457.0,0.09248277]
[1742156348619,0.00544366,83461.0,83457.0,0.09248277]
[1742156349106,0.00544366,83461.0,83458.0,0.191713]
[1742156349278,0.00544366,83461.0,83458.0,0.203695]
[1742156349698,0.191703,83463.0,83458.0,0.203695]
[1742156349898,0.00544366,83460.0,83458.0,0.203695]
[1742156350128,0.203684,83463.0,83457.0,0.09248277]
[1742156350298,0.00544366,83459.0,83457.0,0.09248277]
[1742156350504,0.01877972,83460.0,83457.0,0.09248277]
[1742156350722,0.00544366,83458.0,83457.0,0.09248277]
[1742156350868,0.01877972,83460.0,83457.0,0.09248277]
[1742156351075,0.00544366,83458.0,83457.0,0.09248277]
[1742156351297,0.01877972,83460.0,83457.0,0.09248277]
[1742156351496,0.00544366,83458.0,83457.0,0.09248277]
[1742156351748,0.011981,83462.0,83457.0,0.09248277]
[1742156351926,0.00544366,83458.0,83457.0,0.09248277]
[1742156352158,0.011981,83462.0,83457.0,0.09248277]
[1742156352361,0.00544366,83458.0,83457.0,0.09248277]
[1742156352639,0.011981,83462.0,83457.0,0.09248277]
[1742156352863,0.00544366,83458.0,83457.0,0.09248277]
[1742156352996,0.011981,83462.0,83457.0,0.28419577]
[1742156353213,0.00544366,83458.0,83457.0,0.28419577]
[1742156353412,0.011981,83462.0,83457.0,0.28419577]
[1742156353609,0.00544366,83458.0,83457.0,0.28419577]
[1742156353812,0.191697,83465.0,83459.0,0.203691]
[1742156354012,0.203678,83465.0,83460.0,0.011981]
[1742156354225,0.203682,83464.0,83459.0,0.011981]
[1742156354465,0.22246133,83464.0,83459.0,0.011981]
[1742156355981,0.03076033,83464.0,83459.0,0.203689]
[1742156356175,0.0001694,83462.0,83459.0,0.203689]
[1742156356583,0.0001694,83462.0,83461.0,0.191706]
[1742156356981,0.0001694,83462.0,83460.0,0.011981]
[1742156357208,0.0001694,83462.0,83459.0,0.203689]
[1742156357609,0.0001694,83462.0,83458.0,0.011982]
[1742156357812,0.2038554,83462.0,83457.0,0.08050077]
[1742156358334,0.191708,83460.0,83457.0,0.08050077]
[1742156359066,0.011981,83461.0,83457.0,0.08050077]
[1742156361086,0.2224687,83461.0,83457.0,0.08050077]
[1742156361236,0.00544904,83460.0,83457.0,0.08050077]
[1742156361443,0.00544904,83460.0,83457.0,1.58050077]
[1742156362997,0.00544904,83460.0,83457.0,1.77221477]
[1742156363276,0.2038544,83462.0,83457.0,1.78419677]
[1742156363677,0.00544786,83461.0,83457.0,1.78419677]
[1742156363982,0.0121504,83462.0,83457.0,1.78419677]
[1742156364351,0.0121504,83462.0,83457.0,0.28419677]
[1742156364554,0.00544786,83461.0,83457.0,0.28419677]
[1742156364751,0.00544786,83461.0,83459.0,0.19171]
[1742156364960,0.00544786,83461.0,83459.0,0.203691]
[1742156365159,0.01877953,83461.0,83458.0,0.011982]
[1742156366519,0.01877953,83461.0,83457.0,1.78419677]
[1742156366730,0.03076053,83461.0,83457.0,1.50000077]
[1742156366910,0.19715786,83460.0,83457.0,1.50000077]
[1742156367119,0.011981,83460.0,83457.0,7.7e-07]
[1742156367319,0.197162,83459.0,83457.0,7.7e-07]
[1742156367479,0.005451,83459.0,83457.0,7.7e-07]
[1742156367683,0.005451,83459.0,83457.0,0.01198277]
[1742156367872,0.005451,83459.0,83458.0,0.011982]
[1742156368067,0.01877953,83461.0,83460.0,0.011981]
[1742156368271,0.01877953,83461.0,83460.0,0.089881]
[1742156368491,0.0001694,83462.0,83461.0,0.503687]
[1742156370118,0.0001694,83462.0,83461.0,0.548787]
[1742156370119,0.0011694,83462.0,83461.0,0.548787]
[1742156370854,0.0021694,83462.0,83461.0,0.626687]
[1742156371691,0.0021694,83462.0,83461.0,2.126687]
[1742156372739,0.0011694,83462.0,83461.0,2.126687]
[1742156372962,0.0001694,83462.0,83461.0,2.126687]
[1742156373159,0.0021694,83462.0,83461.0,2.130687]
[1742156378434,0.0021694,83462.0,83461.0,2.272047]
[1742156382341,0.01842748,83475.0,83473.0,0.3]
[1742156382578,0.01883879,83475.0,83473.0,0.3]
[1742156382784,0.00549315,83474.0,83473.0,0.311979]
[1742156383166,0.01883879,83475.0,83474.0,0.503655]
[1742156385815,0.01883879,83475.0,83474.0,0.511655]
[1742156386554,0.01883879,83475.0,83474.0,2.011655]
[1742156388950,0.01883879,83475.0,83474.0,1.808]
[1742156389154,0.03081779,83475.0,83474.0,0.008]
[1742156389382,0.08899031,83475.0,83474.0,0.008]
[1742156389561,0.09448346,83475.0,83474.0,0.008]
[1742156389757,0.09448346,83475.0,83474.0,0.004]
[1742156390190,0.01198,83468.0,83462.0,0.503684]
[1742156390938,0.203671,83468.0,83462.0,0.503684]
[1742156391386,0.00549679,83467.0,83462.0,0.503684]
[1742156391527,0.011981,83463.0,83460.0,0.3]
[1742156391734,0.011981,83462.0,83460.0,0.3]
[1742156391956,0.203687,83461.0,83460.0,0.3]
[1742156392733,0.22795313,83461.0,83460.0,0.005]
[1742156393299,0.22346496,83461.0,83460.0,0.01]
[1742156393523,0.02526613,83461.0,83460.0,0.01]
[1742156393731,0.00648817,83461.0,83460.0,0.01]
[1742156394042,0.001,83461.0,83460.0,0.01]
[1742156394956,0.001,83461.0,83460.0,0.005]
[1742156395119,0.00748817,83461.0,83460.0,0.01]
[1742156396728,0.00748817,83461.0,83460.0,1.81]
[1742156397046,0.0262661,83461.0,83460.0,1.81]
[1742156398110,0.00748817,83461.0,83460.0,1.81]
[1742156398314,0.01946917,83461.0,83460.0,1.81]
[1742156399626,0.01946917,83461.0,83460.0,0.31]
[1742156400200,0.00748817,83461.0,83460.0,0.31]
[1742156400500,0.002,83461.0,83460.0,0.31]
[1742156402563,0.193706,83461.0,83460.0,0.31]
[1742156402980,0.19918358,83461.0,83460.0,0.31]
[1742156403364,0.00747758,83461.0,83460.0,0.31]
[1742156403801,0.002,83461.0,83460.0,0.31]
[1742156403982,0.205687,83461.0,83460.0,0.3103384]
[1742156404281,0.21116458,83461.0,83460.0,0.3103384]
[1742156404513,0.21116458,83461.0,83460.0,0.0103384]
[1742156404514,0.34156458,83461.0,83460.0,0.0103384]
[1742156404754,0.75716347,83461.0,83460.0,0.0103384]
[1742156405361,0.75616347,83461.0,83460.0,0.0053384]
[1742156405684,0.75516347,83461.0,83460.0,0.0003384]
[1742156405973,0.77394496,83461.0,83460.0,0.0003384]
[1742156406182,0.78592771,83461.0,83460.0,0.0003384]
[1742156407153,0.78592771,83461.0,83460.0,4e-07]
[1742156407154,0.78168707,83461.0,83460.0,4e-07]
[1742156407525,1.13168687,83461.0,83460.0,4e-07]
[1742156408114,0.89844347,83461.0,83460.0,4e-07]
[1742156408337,0.75716347,83461.0,83460.0,4e-07]
[1742156408462,0.62676347,83461.0,83460.0,4e-07]
[1742156408663,0.63176347,83461.0,83460.0,4e-07]
[1742156409228,0.44005747,83461.0,83460.0,4e-07]
[1742156409508,0.42407647,83461.0,83460.0,4e-07]
[1742156409677,0.42407647,83461.0,83460.0,0.0010004]
[1742156409678,0.61578247,83461.0,83460.0,0.0010004]
[1742156409884,0.62776347,83461.0,83460.0,0.0010004]
[1742156410028,0.62476347,83461.0,83460.0,0.0010004]
[1742156410384,0.62576347,83461.0,83460.0,0.0010004]
[1742156410805,0.62576347,83461.0,83460.0,4e-07]
[1742156411085,0.64354432,83461.0,83460.0,4e-07]
[1742156411307,0.64354432,83461.0,83460.0,0.0040004]
[1742156413335,0.75516347,83461.0,83460.0,0.0040004]
[1742156414045,0.75516347,83461.0,83460.0,0.0020004]
[1742156414515,0.75816347,83461.0,83460.0,4e-07]
[1742156415005,0.75716347,83461.0,83460.0,4e-07]
[1742156415468,0.77270432,83461.0,83460.0,4e-07]
[1742156415695,0.75616347,83461.0,83460.0,4e-07]
[1742156416169,0.75716347,83461.0,83460.0,4e-07]
[1742156416411,0.77594519,83461.0,83460.0,4e-07]
[1742156418330,0.62676347,83461.0,83460.0,4e-07]
[1742156418804,0.62576347,83461.0,83460.0,4e-07]
[1742156419043,0.62476347,83461.0,83460.0,4e-07]
[1742156419512,0.62576347,83461.0,83460.0,4e-07]
[1742156420811,0.64454546,83461.0,83460.0,4e-07]
[1742156421794,0.62576347,83461.0,83460.0,4e-07]
[1742156425247,0.64454496,83461.0,83460.0,4e-07]
[1742156427524,0.64471426,83461.0,83460.0,4e-07]
[1742156428544,0.62593277,83461.0,83460.0,4e-07]
[1742156430309,0.59697669,83461.0,83460.0,4e-07]
[1742156430724,0.88255754,83461.0,83460.0,4e-07]
[1742156431055,0.85365754,83461.0,83460.0,4e-07]
[1742156431470,0.85265754,83461.0,83460.0,4e-07]
[1742156431872,0.87143965,83461.0,83460.0,4e-07]
[1742156432118,0.87443965,83461.0,83460.0,4e-07]
[1742156432529,0.87611283,83461.0,83460.0,4e-07]
[1742156432951,0.86133072,83461.0,83460.0,4e-07]
[1742156434820,0.86633072,83461.0,83460.0,4e-07]
[1742156435484,0.87536541,83461.0,83460.0,4e-07]
[1742156435880,0.87036541,83461.0,83460.0,4e-07]
[1742156437426,0.88914825,83461.0,83460.0,4e-07]
[1742156437836,0.87036541,83461.0,83460.0,4e-07]
[1742156438586,0.87517141,83461.0,83460.0,4e-07]
[1742156439815,1.29974644,83461.0,83460.0,4e-07]
[1742156440633,0.284038,83440.0,83439.0,5.7e-07]
[1742156440772,0.82649532,83440.0,83439.0,5.7e-07]
[1742156441192,0.83258199,83440.0,83439.0,5.7e-07]
[1742156441820,0.8444184,83440.0,83439.0,5.7e-07]
[1742156441993,0.8444184,83440.0,83439.0,0.00010859]
[1742156442174,0.203746,83437.0,83436.0,7.9e-07]
[1742156442381,0.21828685,83437.0,83436.0,0.00012402]
[1742156442591,0.20982963,83437.0,83436.0,0.00012402]
[1742156443006,0.21132811,83437.0,83436.0,0.00012402]
[1742156444079,0.21232811,83437.0,83436.0,0.00012402]
[1742156444502,0.22686896,83437.0,83436.0,0.00012402]
[1742156444712,0.2505402,83437.0,83436.0,0.00012402]
[1742156444920,0.26682846,83437.0,83436.0,0.00012402]
[1742156445131,0.26782846,83437.0,83436.0,0.00012402]
[1742156445539,0.26882846,83437.0,83436.0,0.00012402]
[1742156445739,0.65450493,83437.0,83436.0,0.00012402]
[1742156446154,0.65650493,83437.0,83436.0,0.00012402]
[1742156446352,0.65550493,83437.0,83436.0,0.00012402]
[1742156446629,0.65850493,83437.0,83436.0,0.00012402]
[1742156447831,0.63971819,83437.0,83436.0,0.00012402]
[1742156454832,0.6015061,83437.0,83436.0,0.00012402]
[1742156455111,0.7427461,83437.0,83436.0,0.00012402]
[1742156455733,0.76153235,83437.0,83436.0,0.00012402]
[1742156456857,0.62029235,83437.0,83436.0,0.00012402]
[1742156457068,0.6015061,83437.0,83436.0,0.00012402]
[1742156457709,0.5985061,83437.0,83436.0,0.00012402]
[1742156457924,0.5965061,83437.0,83436.0,0.00012402]
[1742156460377,0.61529172,83437.0,83436.0,0.00012402]
[1742156461362,0.5965061,83437.0,83436.0,0.00012402]
[1742156462244,0.5975061,83437.0,83436.0,0.00012402]
[1742156462656,0.5985061,83437.0,83436.0,0.00012402]
[1742156463366,0.5986754,83437.0,83436.0,0.00012402]
[1742156464330,0.61746166,83437.0,83436.0,0.00012402]
[1742156465959,0.61646166,83437.0,83436.0,0.00012402]
[1742156466138,0.61846166,83437.0,83436.0,0.00012402]
[1742156466713,0.61746166,83437.0,83436.0,0.00012402]
[1742156466917,0.62046166,83437.0,83436.0,0.00012402]
[1742156467535,0.63500251,83437.0,83436.0,0.00012402]
[1742156467747,0.011985,83433.0,83432.0,4.2e-07]
[1742156468148,0.01805401,83433.0,83432.0,4.2e-07]
[1742156469292,0.02005401,83433.0,83432.0,4.2e-07]
[1742156469703,0.02005401,83433.0,83432.0,0.07960042]
[1742156469704,0.00806901,83433.0,83432.0,0.07960042]
[1742156470144,0.02005401,83433.0,83432.0,0.07960042]
[1742156471174,0.03683924,83433.0,83432.0,0.07960042]
[1742156471952,0.03683924,83433.0,83432.0,0.09149214]
[1742156472132,0.01805401,83433.0,83432.0,0.07960042]
[1742156473200,0.01805401,83433.0,83432.0,0.09190377]
[1742156473827,0.01805401,83433.0,83432.0,0.07960042]
[1742156474819,0.01805401,83433.0,83432.0,4.2e-07]
[1742156474998,0.01955222,83433.0,83432.0,4.2e-07]
[1742156475229,0.0368397,83433.0,83432.0,4.2e-07]
[1742156476496,0.01805401,83433.0,83432.0,4.2e-07]
[1742156477356,0.01805401,83433.0,83432.0,0.07710042]
[1742156477753,0.01805401,83433.0,83432.0,4.2e-07]
[1742156479970,0.03684011,83433.0,83432.0,4.2e-07]
[1742156480948,0.01805401,83433.0,83432.0,4.2e-07]
[1742156484067,0.03684043,83433.0,83432.0,4.2e-07]
[1742156486514,0.03700973,83433.0,83432.0,4.2e-07]
[1742156487936,0.01822331,83433.0,83432.0,4.2e-07]
[1742156491208,0.03700961,83433.0,83432.0,4.2e-07]
[1742156492293,0.01822331,83433.0,83432.0,4.2e-07]
[1742156495617,0.03700967,83433.0,83432.0,4.2e-07]
[1742156496768,0.01822331,83433.0,83432.0,4.2e-07]
[1742156500037,0.56630447,83433.0,83432.0,4.2e-07]
[1742156500247,0.56480618,83433.0,83432.0,4.2e-07]
[1742156500430,0.203757,83432.0,83431.0,4.2e-07]
[1742156500675,0.20525558,83432.0,83431.0,4.156e-05]
[1742156500884,0.21132006,83432.0,83431.0,4.156e-05]
[1742156501097,0.203765,83429.0,83428.0,7.6e-07]
[1742156501310,0.32726368,83429.0,83428.0,7.6e-07]
[1742156501520,0.325765,83429.0,83428.0,7.6e-07]
[1742156501724,0.33182169,83429.0,83428.0,7.6e-07]
[1742156502678,0.33382169,83429.0,83428.0,7.6e-07]
[1742156503295,0.33582169,83429.0,83428.0,7.6e-07]
[1742156504150,0.33382169,83429.0,83428.0,7.6e-07]
[1742156504326,0.73928757,83429.0,83428.0,7.6e-07]
[1742156504672,0.73728757,83429.0,83428.0,7.6e-07]
[1742156504820,0.74028757,83429.0,83428.0,7.6e-07]
[1742156505429,0.74228757,83429.0,83428.0,7.6e-07]
[1742156505845,0.76140757,83429.0,83428.0,7.6e-07]
[1742156506779,0.75940757,83429.0,83428.0,7.6e-07]
[1742156507098,0.76140757,83429.0,83428.0,7.6e-07]
[1742156507713,0.75840757,83429.0,83428.0,7.6e-07]
[1742156508137,0.76040757,83429.0,83428.0,7.6e-07]
[1742156508344,0.74161816,83429.0,83428.0,7.6e-07]
[1742156508546,0.82481816,83429.0,83428.0,7.6e-07]
[1742156508752,0.82498746,83429.0,83428.0,7.6e-07]
[1742156509364,0.82098746,83429.0,83428.0,7.6e-07]
[1742156509518,0.82498746,83429.0,83428.0,7.6e-07]
[1742156509717,0.82898746,83429.0,83428.0,7.6e-07]
[1742156511643,0.84777682,83429.0,83428.0,7.6e-07]
[1742156517136,0.76457682,83429.0,83428.0,7.6e-07]
[1742156528731,0.62345682,83429.0,83428.0,7.6e-07]
[1742156528938,0.60466746,83429.0,83428.0,7.6e-07]
[1742156530184,0.59666746,83429.0,83428.0,7.6e-07]
[1742156532145,0.61545597,83429.0,83428.0,7.6e-07]
[1742156533309,0.59666746,83429.0,83428.0,7.6e-07]
[1742156534567,0.79284249,83429.0,83428.0,7.6e-07]
[1742156535180,0.67326746,83429.0,83428.0,7.6e-07]
[1742156536264,0.67726746,83429.0,83428.0,7.6e-07]
[1742156536462,0.69705662,83429.0,83428.0,7.6e-07]
[1742156537083,0.69605662,83429.0,83428.0,7.6e-07]
[1742156537239,0.70005662,83429.0,83428.0,7.6e-07]
[1742156541865,0.68126746,83429.0,83428.0,7.6e-07]
[1742156545280,0.70005699,83429.0,83428.0,7.6e-07]
[1742156545995,0.62345699,83429.0,83428.0,7.6e-07]
[1742156546325,0.60466746,83429.0,83428.0,7.6e-07]
[1742156547696,0.60066746,83429.0,83428.0,7.6e-07]
[1742156548095,0.59666746,83429.0,83428.0,7.6e-07]
[1742156549649,0.4116899,83429.0,83428.0,0.19178276]
[1742156549851,0.4116899,83429.0,83428.0,0.28426876]
[1742156550055,0.39290246,83429.0,83428.0,0.28426876]
[1742156550269,0.39290246,83429.0,83428.0,0.08050076]
[1742156551151,0.38684577,83429.0,83428.0,0.08050076]
[1742156551357,0.1919483,83429.0,83428.0,0.08050076]
[1742156551558,0.0061171,83429.0,83428.0,0.08050076]
[1742156551758,0.0001693,83429.0,83428.0,0.08050076]
[1742156552444,0.0061171,83429.0,83428.0,0.08050076]
[1742156552649,0.0001693,83429.0,83428.0,0.08050076]
[1742156552856,0.0061171,83429.0,83428.0,0.08050076]
[1742156553060,0.0001693,83429.0,83428.0,0.08050076]
[1742156553305,0.0061171,83429.0,83428.0,0.08050076]
[1742156553512,0.0121553,83429.0,83428.0,0.08050076]
[1742156553737,0.0061171,83429.0,83428.0,0.08050076]
[1742156554384,0.01895618,83429.0,83428.0,0.08050076]
[1742156554617,0.01895618,83429.0,83428.0,0.27228276]
[1742156554821,0.02490746,83429.0,83428.0,0.28426876]
[1742156555039,0.01895618,83429.0,83428.0,0.28426876]
[1742156555462,0.01895618,83429.0,83428.0,0.08050076]
[1742156555644,0.02490746,83429.0,83428.0,0.08050076]
[1742156557224,0.02490746,83429.0,83428.0,0.09248676]
[1742156557401,0.01895618,83429.0,83428.0,0.09248676]
[1742156558461,0.0249234,83429.0,83428.0,0.09248676]
[1742156558674,0.01895618,83429.0,83428.0,0.09248676]
[1742156559469,0.02492341,83429.0,83428.0,0.09248676]
[1742156559879,0.01895618,83429.0,83428.0,0.09248676]
[1742156560122,0.02492341,83429.0,83428.0,0.09248676]
[1742156562139,0.01895618,83429.0,83428.0,0.09248676]
[1742156562749,0.0001693,83429.0,83428.0,0.09248676]
[1742156563561,0.0001693,83429.0,83428.0,0.39308696]
[1742156563753,0.0001693,83429.0,83428.0,0.39248676]
[1742156565381,0.0001693,83429.0,83428.0,1.89248676]
[1742156597962,0.0001693,83429.0,83428.0,1.81198676]
[1742156599071,0.0121553,83429.0,83428.0,7.6e-07]
[1742156599271,0.0899553,83429.0,83428.0,7.6e-07]
[1742156599484,0.09742092,83429.0,83428.0,7.6e-07]
[1742156599685,0.11471056,83429.0,83428.0,7.6e-07]
[1742156600500,0.11471056,83429.0,83428.0,0.00100076]
[1742156600652,0.09592256,83429.0,83428.0,7.6e-07]
[1742156602094,0.09592256,83429.0,83428.0,0.00100076]
[1742156602423,0.09592256,83429.0,83428.0,7.6e-07]
[1742156602898,0.09592256,83429.0,83428.0,0.00100076]
[1742156603682,0.11471097,83429.0,83428.0,0.00100076]
[1742156603890,0.11620935,83429.0,83428.0,0.00100076]
[1742156604093,0.50138744,83429.0,83428.0,0.00100076]
[1742156605401,0.50138744,83429.0,83423.0,0.0003384]
[1742156605402,0.330177,83424.0,83423.0,1.6e-07]
[1742156605673,0.470977,83424.0,83423.0,1.6e-07]
[1742156605872,0.47691936,83424.0,83423.0,1.6e-07]
[1742156607131,0.47791936,83424.0,83423.0,1.6e-07]
[1742156607951,0.47891936,83424.0,83423.0,1.6e-07]
[1742156609944,0.86559583,83424.0,83423.0,1.6e-07]
[1742156611472,0.86559583,83424.0,83412.0,0.00474765]
[1742156611473,0.203804,83413.0,83412.0,0.00474765]
[1742156611684,0.59048047,83413.0,83412.0,0.00478876]
[1742156612043,0.59642283,83413.0,83412.0,0.00478876]
[1742156619966,0.61521307,83413.0,83412.0,0.00478876]
[1742156621091,0.59642283,83413.0,83412.0,0.00478876]
[1742156623206,0.67962283,83413.0,83412.0,0.00478876]
[1742156623401,0.72462283,83413.0,83412.0,0.00478876]
[1742156624232,0.74441385,83413.0,83412.0,0.00478876]
[1742156624940,0.74441385,83413.0,83412.0,0.00495806]
[1742156625141,0.74475245,83413.0,83412.0,0.00495806]
[1742156625523,0.74375245,83413.0,83412.0,0.00495806]
[1742156625948,0.74475245,83413.0,83412.0,0.00495806]
[1742156627323,0.74475245,83413.0,83412.0,6e-08]
[1742156627707,0.203809,83411.0,83410.0,6.6e-07]
[1742156627875,0.28580799,83411.0,83410.0,1.6e-07]
[1742156628094,0.284309,83411.0,83410.0,1.6e-07]
[1742156628325,0.35006884,83411.0,83410.0,1.6e-07]
[1742156629248,1.06074553,83411.0,83410.0,1.6e-07]
[1742156629450,1.06474553,83411.0,83410.0,1.6e-07]
[1742156629803,1.06974553,83411.0,83410.0,1.6e-07]
[1742156630241,1.16467452,83411.0,83410.0,1.6e-07]
[1742156631032,1.18347059,83411.0,83410.0,1.6e-07]
[1742156631856,1.17847059,83411.0,83410.0,1.6e-07]
[1742156632131,1.0885416,83411.0,83410.0,1.6e-07]
[1742156632332,1.0845416,83411.0,83410.0,1.6e-07]
[1742156632703,1.0895416,83411.0,83410.0,1.6e-07]
[1742156633838,1.07500075,83411.0,83410.0,1.6e-07]
[1742156634041,1.21576075,83411.0,83410.0,1.6e-07]
[1742156635144,1.2303016,83411.0,83410.0,1.6e-07]
[1742156636869,1.2351106,83411.0,83410.0,1.6e-07]
[1742156637631,1.2351106,83411.0,83410.0,4.6e-07]
[1742156637828,1.2354492,83411.0,83410.0,4.6e-07]
[1742156638388,1.08014835,83411.0,83410.0,4.6e-07]
[1742156638602,1.22090835,83411.0,83410.0,4.6e-07]
[1742156638963,1.21609935,83411.0,83410.0,4.6e-07]
[1742156640323,1.09029935,83411.0,83410.0,4.6e-07]
[1742156642711,0.62553913,83411.0,83410.0,4.6e-07]
[1742156642952,0.60674306,83411.0,83410.0,4.6e-07]
[1742156643546,0.60174306,83411.0,83410.0,4.6e-07]
[1742156643951,0.60374306,83411.0,83410.0,4.6e-07]
[1742156644674,0.59874306,83411.0,83410.0,4.6e-07]
[1742156645019,0.60074306,83411.0,83410.0,4.6e-07]
[1742156646263,0.61953636,83411.0,83410.0,4.6e-07]
[1742156646983,0.42771536,83411.0,83410.0,4.6e-07]
[1742156647336,0.60074306,83411.0,83410.0,4.6e-07]
[1742156647893,0.59674306,83411.0,83410.0,4.6e-07]
[1742156648093,0.59674306,83411.0,83410.0,0.00100046]
[1742156648955,0.39293406,83411.0,83408.0,0.20051646]
[1742156649270,0.39305229,83411.0,83408.0,0.20051646]
[1742156649524,0.191826,83409.0,83405.0,0.08]
[1742156649710,0.59686129,83411.0,83410.0,0.0001693]
[1742156650864,0.61565298,83411.0,83410.0,0.0001693]
[1742156651689,0.59686129,83411.0,83410.0,0.0001693]
[1742156656060,0.61565306,83411.0,83410.0,0.0001693]
[1742156658924,0.59686129,83411.0,83410.0,0.0001693]
[1742156661161,0.59686129,83411.0,83410.0,0.0001693]
[1742156662403,0.61565299,83411.0,83410.0,0.0001693]
[1742156667157,0.59686129,83411.0,83410.0,0.0001693]
[1742156670445,0.61565313,83411.0,83410.0,0.0001693]
[1742156671397,0.59686129,83411.0,83410.0,0.0001693]
[1742156672631,0.39305229,83411.0,83410.0,0.0001693]
[1742156672833,0.39305229,83411.0,83410.0,0.0121573]
[1742156673935,0.39305229,83411.0,83410.0,0.0001693]
[1742156674797,0.41184361,83411.0,83410.0,0.0121573]
[1742156677299,0.02516714,83411.0,83410.0,0.0121573]
[1742156677502,0.00637582,83411.0,83410.0,0.4359573]
[1742156677708,0.00045683,83411.0,83410.0,0.4359573]